Workbook

Sheet DRESSAGE
A1: CHAMPIONNAT DE FRANCE SPORT ADAPTE EQUITATION
A2: 19 et 20 JUIN 2014 - LES RENES DE LA VIE - SAINT LO
A3: DRESSAGE - DIVISION 1 VETERANS
B6: Nombre de partants : | C6: =COUNTA(B8:B40) -> 9
A7: Dossard | B7: Cavalier | C7: Cheval | D7: Association | E7: Juge 1 | F7: Pénal. | G7: Juge 2 | H7: Pénal. | I7: TOTAL | J7: Classement
A8: 1 | B8: DUCROCQ Guillaume | C8: ESTORIAC | D8: Association Sportive des Vallées | E8: 112 | G8: 114 | I8: =(E8-F8+G8-H8)/2 -> 113 | J8: 5
A9: 2 | B9: ISSNER Albert | C9: HOTESSE | D9: ASCETH Mulhouse | E9: 105 | G9: 107 | I9: =(E9-F9+G9-H9)/2 -> 106 | J9: 6
A10: 3 | B10: PEGUILLAT Nathalie | C10: BARTH | D10: ASAL 39 | E10: 131 | G10: 124 | I10: =(E10-F10+G10-H10)/2 -> 127.5 | J10: 3
A11: 4 | B11: SIMON Philippe | C11: NORA de la PRAIRIE | D11: ASFAA Foyer Renoir | E11: 120 | G11: 118 | I11: =(E11-F11+G11-H11)/2 -> 119 | J11: 4
A12: 5 | B12: MATORVIEZORNAVA Frédéric | C12: JUS POMME | D12: ASFAA Foyer Renoir | E12: 103 | F12: 2 | G12: 108 | H12: 2 | I12: =(E12-F12+G12-H12)/2 -> 103.5 | J12: 7
A13: 6 | B13: REAU Patrick | C13: NORA de la PRAIRIE | D13: ASFAA Foyer Renoir | E13: 105 | F13: 4 | G13: 101 | H13: 4 | I13: =(E13-F13+G13-H13)/2 -> 99 | J13: 8
A14: 7 | B14: BOISDRON François | C14: LYNDA | D14: ASFAA Foyer Renoir | E14: 150 | G14: 132 | I14: =(E14-F14+G14-H14)/2 -> 141 | J14: 1
A15: 8 | B15: GRAVE Michel | C15: NAOMIE | D15: Les rênes de la vie (Poney Club La Choinetière) | E15: 150 | G15: 132 | I15: =(E15-F15+G15-H15)/2 -> 141 | J15: 1
A16: 9 | B16: LE GUEN Bruno | C16: UN ESPOIR | D16: CLAP 22 | E16: 135 | G16: 146 | I16: 140.5 | J16: 2
I17: =(E17-F17+G17-H17)/2 -> 0
I18: 0
I19: 0
I20: 0
I21: 0
I22: 0
I23: 0
I24: 0
I25: 0
I26: 0
I27: 0
I28: 0
I29: 0
I30: 0
I31: 0
I32: 0
I33: 0
I34: 0
I35: 0
I36: 0
I37: 0
I38: 0
I39: 0
I40: 0

Sheet CSO
A1: CHAMPIONNAT DE FRANCE SPORT ADAPTE EQUITATION
A2: 19 et 20 JUIN 2014 - LES RENES DE LA VIE - SAINT LO
A3: CSO - DIVISION 1 VETERANS
B6: Nombre de partants : | C6: =COUNTA(B8:B44) -> 9
A7: Dossard | B7: Cavalier | C7: Cheval | D7: Association | E7: Pénalités piste | F7: Note style | G7: TOTAL | H7: Classement
A8: 1 | B8: DUCROCQ Guillaume | C8: ESTORIAC | D8: Association Sportive des Vallées | E8: 0 | F8: 38 | G8: =F8-E8 -> 38 | H8: 1
A9: 2 | B9: ISSNER Albert | C9: ISMAEL | D9: ASCETH Mulhouse | E9: 0 | F9: 30.5 | G9: =F9-E9 -> 30.5 | H9: 3
A10: 3 | B10: PEGUILLAT Nathalie | C10: BARTH | D10: ASAL 39 | E10: 4 | F10: 25 | G10: =F10-E10 -> 21 | H10: 5
A11: 4 | B11: SIMON Philippe | C11: NORA de la PRAIRIE | D11: ASFAA Foyer Renoir
A12: 5 | B12: MATORVIEZORNAVA Frédéric | C12: JUS POMME | D12: ASFAA Foyer Renoir
A13: 6 | B13: REAU Patrick | C13: NORA de la PRAIRIE | D13: ASFAA Foyer Renoir
A14: 7 | B14: BOISDRON François | C14: LYNDA | D14: ASFAA Foyer Renoir
A15: 8 | B15: GRAVE Michel | C15: NAOMIE | D15: Les rênes de la vie (Poney Club La Choinetière) | E15: 0 | F15: 31 | G15: =F15-E15 -> 31 | H15: 2
A16: 9 | B16: LE GUEN Bruno | C16: UN ESPOIR | D16: CLAP 22 | E16: 0 | F16: 25 | G16: =F16-E16 -> 25 | H16: 4
G17: =F17-E17 -> 0
G18: 0
G19: 0
G20: 0
G21: 0
G22: 0
G23: 0
G24: 0
G25: 0
G26: 0
G27: 0
G28: 0
G29: 0
G30: 0
G31: 0
G32: 0
G33: 0
G34: 0
G35: 0
G36: 0
G37: 0
G38: 0
G39: 0
G40: 0
G41: 0
G42: 0
G43: 0
G44: 0

Sheet CROSS
A1: CHAMPIONNAT DE FRANCE SPORT ADAPTE EQUITATION
A2: 19 et 20 JUIN 2014 - LES RENES DE LA VIE - SAINT LO
A3: CROSS - DIVISION 1 VETERANS
B6: Nombre de partants : | C6: =COUNTA(B8:B44) -> 9 | E6: Tps maxi : | F6: 110
A7: Dossard | B7: Cavalier | C7: Cheval | D7: Association | E7: Pénalités cross | F7: Temps cross | G7: Pénalités Tps | H7: Total Pénalités | I7: Note style | J7: TOTAL | K7: Classement
A8: 1 | B8: DUCROCQ Guillaume | C8: ESTORIAC | D8: Association Sportive des Vallées | E8: 0 | F8: 112 | G8: 11 | H8: =E8+G8 -> 11 | I8: 24 | J8: =I8-H8 -> 13 | K8: 5
A9: 2 | B9: ISSNER Albert | C9: ISMAEL | D9: ASCETH Mulhouse | E9: 0 | F9: 96 | G9: 3 | H9: =E9+G9 -> 3 | I9: 34 | J9: =I9-H9 -> 31 | K9: 2
A10: 3 | B10: PEGUILLAT Nathalie | C10: BARTH | D10: ASAL 39 | E10: 0 | F10: 105 | G10: 7.5 | H10: =E10+G10 -> 7.5 | I10: 35 | J10: =I10-H10 -> 27.5 | K10: 3
A11: 4 | B11: SIMON Philippe | C11: NORA de la PRAIRIE | D11: ASFAA Foyer Renoir
A12: 5 | B12: MATORVIEZORNAVA Frédéric | C12: JUS POMME | D12: ASFAA Foyer Renoir
A13: 6 | B13: REAU Patrick | C13: NORA de la PRAIRIE | D13: ASFAA Foyer Renoir
A14: 7 | B14: BOISDRON François | C14: LYNDA | D14: ASFAA Foyer Renoir
A15: 8 | B15: GRAVE Michel | C15: NAOMIE | D15: Les rênes de la vie (Poney Club La Choinetière) | E15: 0 | F15: 97 | G15: 3.5 | H15: =E15+G15 -> 3.5 | I15: 35 | J15: =I15-H15 -> 31.5 | K15: 1
A16: 9 | B16: LE GUEN Bruno | C16: UN ESPOIR | D16: CLAP 22 | E16: 0 | F16: 108 | G16: 4.5 | H16: =E16+G16 -> 4.5 | I16: 25 | J16: =I16-H16 -> 20.5 | K16: 4
G17: =IF(($F$6-F17)>15,10,IF(($F$6-F17)<0,($F$6-F17)*-0.5,0)) -> 10 | H17: =E17+G17 -> 10 | J17: =I17-H17 -> -10
G18: 10 | H18: 10 | J18: -10
G19: 10 | H19: 10 | J19: -10
G20: 10 | H20: 10 | J20: -10
G21: 10 | H21: 10 | J21: -10
G22: 10 | H22: 10 | J22: -10
G23: 10 | H23: 10 | J23: -10
G24: 10 | H24: 10 | J24: -10
G25: 10 | H25: 10 | J25: -10
G26: 10 | H26: 10 | J26: -10
G27: 10 | H27: 10 | J27: -10
G28: 10 | H28: 10 | J28: -10
G29: 10 | H29: 10 | J29: -10
G30: 10 | H30: 10 | J30: -10
G31: 10 | H31: 10 | J31: -10
G32: 10 | H32: 10 | J32: -10
G33: 10 | H33: 10 | J33: -10
G34: 10 | H34: 10 | J34: -10
G35: 10 | H35: 10 | J35: -10
G36: 10 | H36: 10 | J36: -10
G37: 10 | H37: 10 | J37: -10
G38: 10 | H38: 10 | J38: -10
G39: 10 | H39: 10 | J39: -10
G40: 10 | H40: 10 | J40: -10
G41: 10 | H41: 10 | J41: -10
G42: 10 | H42: 10 | J42: -10
G43: 10 | H43: 10 | J43: -10
G44: 10 | H44: 10 | J44: -10

Sheet EQUIFUN
A1: CHAMPIONNAT DE FRANCE SPORT ADAPTE EQUITATION
A2: 19 et 20 JUIN 2014 - LES RENES DE LA VIE - SAINT LO
A3: EQUIFUN - DIVISION 1 VETERANS
B6: Nombre de partants : | C6: =COUNTA(B8:B40) -> 7
A7: Dossard | B7: Cavalier | C7: Cheval | D7: Association | E7: Juge 1 | F7: Juge 2 | G7: Pénalités | H7: TOTAL | I7: Temps | J7: Classement
A8: 8 | B8: GRAVE Michel | C8: NAOMIE | D8: Les rênes de la vie (Poney Club La Choinetière) | E8: 98 | F8: 96 | H8: =E8+F8-G8 -> 194 | I8: 101.73 | J8: 1
A9: 4 | B9: SIMON Philippe | C9: NORA de la PRAIRIE | D9: ASFAA Foyer Renoir | E9: 94 | F9: 98 | H9: 192 | I9: 85.84 | J9: 2
A10: 6 | B10: REAU Patrick | C10: NORA de la PRAIRIE | D10: ASFAA Foyer Renoir | E10: 88 | F10: 92 | H10: 180 | I10: 116.72 | J10: 3
A11: 7 | B11: BOISDRON François | C11: LYNDA | D11: ASFAA Foyer Renoir | E11: 86 | F11: 90 | H11: 176 | I11: 134.87 | J11: 4
A12: 2 | B12: ISSNER Albert | C12: HOTESSE | D12: ASCETH Mulhouse | E12: 86 | F12: 84 | H12: 170 | I12: 73.54 | J12: 5
A13: 5 | B13: MATORVIEZORNAVA Frédéric | C13: JUS POMME | D13: ASFAA Foyer Renoir | E13: 86 | F13: 82 | H13: 168 | I13: 143.15 | J13: 6
A14: 1 | B14: DUCROCQ Guillaume | C14: ESTORIAC | D14: Association Sportive des Vallées | E14: 82 | F14: 84 | H14: 166 | I14: 133.33 | J14: 7

Sheet ATTELAGE
A1: CHAMPIONNAT DE FRANCE SPORT ADAPTE EQUITATION
A2: 19 et 20 JUIN 2014 - LES RENES DE LA VIE - SAINT LO
A3: ATTELAGE - DIVISION 1 VETERANS
B6: Nombre de partants : | C6: =COUNTA(B8:B40) -> 0 | I6: Tps maxi : | J6: 173
A7: Dossard | B7: Cavalier | C7: Cheval | D7: Association | E7: Pénalités Piste | F7: Pénalités Marathon | G7: Note style cavalier | H7: Total 1ère Manche | I7: Pénalités Piste | J7: Pénalités Marathon | K7: Note style cavalier | L7: Temps réalisé | M7: Pénalités Temps | N7: Total 2ème Manche | O7: TOTAL FINAL | P7: Classement
H8: =G8-F8-E8 -> 0 | M8: =IF(L8>$J$6,(L8-$J$6)*0.5,0) -> 0 | N8: =K8-J8-I8-M8 -> 0 | O8: =H8+N8 -> 0
H9: 0 | M9: 0 | N9: 0 | O9: 0
H10: 0 | M10: 0 | N10: 0 | O10: 0
H11: 0 | M11: 0 | N11: 0 | O11: 0
H12: 0 | M12: 0 | N12: 0 | O12: 0
H13: 0 | M13: 0 | N13: 0 | O13: 0
H14: 0 | M14: 0 | N14: 0 | O14: 0
H15: 0 | M15: 0 | N15: 0 | O15: 0
H16: 0 | M16: 0 | N16: 0 | O16: 0
H17: 0 | M17: 0 | N17: 0 | O17: 0
H18: 0 | M18: 0 | N18: 0 | O18: 0
H19: 0 | M19: 0 | N19: 0 | O19: 0
H20: 0 | M20: 0 | N20: 0 | O20: 0
H21: 0 | M21: 0 | N21: 0 | O21: 0
H22: 0 | M22: 0 | N22: 0 | O22: 0
H23: 0 | M23: 0 | N23: 0 | O23: 0
H24: 0 | M24: 0 | N24: 0 | O24: 0
H25: 0 | M25: 0 | N25: 0 | O25: 0
H26: 0 | M26: 0 | N26: 0 | O26: 0
H27: 0 | M27: 0 | N27: 0 | O27: 0
H28: 0 | M28: 0 | N28: 0 | O28: 0
H29: 0 | M29: 0 | N29: 0 | O29: 0
H30: 0 | M30: 0 | N30: 0 | O30: 0
H31: 0 | M31: 0 | N31: 0 | O31: 0
H32: 0 | M32: 0 | N32: 0 | O32: 0
H33: 0 | M33: 0 | N33: 0 | O33: 0
H34: 0 | M34: 0 | N34: 0 | O34: 0
H35: 0 | M35: 0 | N35: 0 | O35: 0
H36: 0 | M36: 0 | N36: 0 | O36: 0
H37: 0 | M37: 0 | N37: 0 | O37: 0
H38: 0 | M38: 0 | N38: 0 | O38: 0
H39: 0 | M39: 0 | N39: 0 | O39: 0
H40: 0 | M40: 0 | N40: 0 | O40: 0

Sheet COMBINE
A1: CHAMPIONNAT DE FRANCE SPORT ADAPTE EQUITATION
A2: 19 et 20 JUIN 2014 - LES RENES DE LA VIE - SAINT LO
A3: COMBINE - DIVISION 1 VETERANS
B6: Nombre de partants : | C6: =COUNTA(B8:B12) -> 5
A7: Dossard | B7: Cavalier | C7: Cheval | D7: Association | E7: Total Dressage | F7: Total CSO | G7: Total Cross | H7: TOTAL | I7: Classement
A8: 8 | B8: GRAVE Michel | C8: NAOMIE | D8: Les rênes de la vie (Poney Club La Choinetière) | E8: =IF(A8=0,0,VLOOKUP(A8,Dressage,9)) -> 141 | F8: =IF(A8=0,0,VLOOKUP(A8,CSO,7)) -> 31 | G8: =IF(A8=0,0,VLOOKUP(A8,Cross,10)) -> 31.5 | H8: =IF(A8=0,0,SUM(E8:G8)) -> 203.5 | I8: 1
A9: 9 | B9: LE GUEN Bruno | C9: UN ESPOIR | D9: CLAP 22 | E9: =IF(A9=0,0,VLOOKUP(A9,Dressage,9)) -> 140.5 | F9: =IF(A9=0,0,VLOOKUP(A9,CSO,7)) -> 25 | G9: =IF(A9=0,0,VLOOKUP(A9,Cross,10)) -> 20.5 | H9: =IF(A9=0,0,SUM(E9:G9)) -> 186 | I9: 2
A10: 3 | B10: PEGUILLAT Nathalie | C10: BARTH | D10: ASAL 39 | E10: =IF(A10=0,0,VLOOKUP(A10,Dressage,9)) -> 127.5 | F10: =IF(A10=0,0,VLOOKUP(A10,CSO,7)) -> 21 | G10: =IF(A10=0,0,VLOOKUP(A10,Cross,10)) -> 27.5 | H10: =IF(A10=0,0,SUM(E10:G10)) -> 176 | I10: 3
A11: 2 | B11: ISSNER Albert | C11: ISMAEL | D11: ASCETH Mulhouse | E11: =IF(A11=0,0,VLOOKUP(A11,Dressage,9)) -> 106 | F11: =IF(A11=0,0,VLOOKUP(A11,CSO,7)) -> 30.5 | G11: =IF(A11=0,0,VLOOKUP(A11,Cross,10)) -> 31 | H11: =IF(A11=0,0,SUM(E11:G11)) -> 167.5 | I11: 4
A12: 1 | B12: DUCROCQ Guillaume | C12: ESTORIAC | D12: Association Sportive des Vallées | E12: =IF(A12=0,0,VLOOKUP(A12,Dressage,9)) -> 113 | F12: =IF(A12=0,0,VLOOKUP(A12,CSO,7)) -> 38 | G12: =IF(A12=0,0,VLOOKUP(A12,Cross,10)) -> 13 | H12: =IF(A12=0,0,SUM(E12:G12)) -> 164 | I12: 5
